[Event "*** SCC Grand Prix: Titled Tuesday Blitz"]
[Site "Chess.com"]
[Date "2020.06.23"]
[Round "9"]
[White "Konavets"]
[Black "Enki007"]
[Result "1-0"]
[WhiteElo "3000"]
[BlackElo "2745"]
[TimeControl "180+1"]
[EndTime "11:46:18 PDT"]
[Termination "Konavets won on time"]

1. d4 {[%clk 0:03:00.9]} 1... d5 {[%clk 0:02:59.3]} 2. c4 {[%clk 0:03:00.4]}
2... dxc4 {[%clk 0:02:59.5]} 3. Nf3 {[%clk 0:02:59.3]} 3... a6 {[%clk 0:02:59]}
4. a4 {[%clk 0:02:53.2]} 4... Nf6 {[%clk 0:02:50.9]} 5. e3 {[%clk 0:02:52.3]}
5... e6 {[%clk 0:02:51.2]} 6. Bxc4 {[%clk 0:02:51.9]} 6... c5 {[%clk 0:02:48.4]}
7. O-O {[%clk 0:02:49.3]} 7... Nc6 {[%clk 0:02:48.5]} 8. Nc3 {[%clk 0:02:44.2]}
8... Be7 {[%clk 0:02:44.4]} 9. Qd3 {[%clk 0:02:42.6]} 9... O-O {[%clk 0:02:36]}
10. Rd1 {[%clk 0:02:36.7]} 10... b6 {[%clk 0:02:21.4]} 11. Qe2 {[%clk
0:02:33.3]} 11... cxd4 {[%clk 0:02:20.9]} 12. exd4 {[%clk 0:02:33.3]} 12... Nb4
{[%clk 0:02:21.2]} 13. Ne5 {[%clk 0:02:33.2]} 13... Bb7 {[%clk 0:02:17]} 14. Bf4
{[%clk 0:02:33.2]} 14... Nbd5 {[%clk 0:02:11.2]} 15. Bg3 {[%clk 0:02:30.7]}
15... Nxc3 {[%clk 0:02:08]} 16. bxc3 {[%clk 0:02:30.5]} 16... Ne4 {[%clk
0:02:07]} 17. Rac1 {[%clk 0:02:24.7]} 17... Rc8 {[%clk 0:01:53.5]} 18. Bf4
{[%clk 0:02:00.6]} 18... b5 {[%clk 0:01:49.3]} 19. axb5 {[%clk 0:01:56.6]} 19...
axb5 {[%clk 0:01:50.2]} 20. Nxf7 {[%clk 0:01:46.6]} 20... Kxf7 {[%clk
0:01:35.1]} 21. Qh5+ {[%clk 0:01:46]} 21... Kg8 {[%clk 0:01:30.1]} 22. Bxe6+
{[%clk 0:01:44.7]} 22... Kh8 {[%clk 0:01:30.5]} 23. Bxc8 {[%clk 0:01:44.9]}
23... Qxc8 {[%clk 0:01:25.4]} 24. Be5 {[%clk 0:01:36.2]} 24... Rxf2 {[%clk
0:01:01.8]} 25. Rf1 {[%clk 0:01:34.3]} 25... Rxf1+ {[%clk 0:00:57.8]} 26. Rxf1
{[%clk 0:01:33.4]} 26... Nf6 {[%clk 0:00:52.1]} 27. Qf7 {[%clk 0:01:27.9]} 27...
Qd8 {[%clk 0:00:40]} 28. Bxf6 {[%clk 0:00:53.3]} 28... Bxf6 {[%clk 0:00:38.4]}
29. Re1 {[%clk 0:00:53.5]} 29... Bc6 {[%clk 0:00:36.7]} 30. Qe6 {[%clk
0:00:53.8]} 30... Bd5 {[%clk 0:00:24.6]} 31. Qe8+ {[%clk 0:00:49.7]} 31... Qxe8
{[%clk 0:00:24.9]} 32. Rxe8+ {[%clk 0:00:50.6]} 32... Bg8 {[%clk 0:00:25.4]} 33.
Rb8 {[%clk 0:00:51.4]} 33... b4 {[%clk 0:00:24]} 34. Rxb4 {[%clk 0:00:50.7]}
34... h6 {[%clk 0:00:23]} 35. Kf2 {[%clk 0:00:50.9]} 35... Bd5 {[%clk 0:00:22]}
36. g3 {[%clk 0:00:51.4]} 36... Kg8 {[%clk 0:00:22.4]} 37. Ke3 {[%clk
0:00:51.7]} 37... h5 {[%clk 0:00:21.9]} 38. c4 {[%clk 0:00:51.6]} 38... Bg5+
{[%clk 0:00:22.1]} 39. Kd3 {[%clk 0:00:51.8]} 39... Bf3 {[%clk 0:00:20.7]} 40.
d5 {[%clk 0:00:50.9]} 40... Kf7 {[%clk 0:00:21.2]} 41. Rb7+ {[%clk 0:00:48.2]}
41... Be7 {[%clk 0:00:21.2]} 42. Kd4 {[%clk 0:00:47.6]} 42... Kf6 {[%clk
0:00:19.3]} 43. c5 {[%clk 0:00:47.7]} 43... h4 {[%clk 0:00:17.3]} 44. gxh4
{[%clk 0:00:45.5]} 44... g6 {[%clk 0:00:13.1]} 45. Ra7 {[%clk 0:00:45.1]} 45...
Bd8 {[%clk 0:00:10.5]} 46. Ra8 {[%clk 0:00:39.3]} 46... Ke7 {[%clk 0:00:06.1]}
47. Ke5 {[%clk 0:00:39.7]} 47... Kd7 {[%clk 0:00:04.1]} 48. c6+ {[%clk 0:00:39]}
48... Kc7 {[%clk 0:00:03.7]} 49. d6+ {[%clk 0:00:39.6]} 49... Kxc6 {[%clk
0:00:03.4]} 50. Rxd8 {[%clk 0:00:40.5]} 50... Bg4 {[%clk 0:00:02.2]} 51. Kf6
{[%clk 0:00:40.6]} 1-0

[Event "*** SCC Grand Prix: Titled Tuesday Blitz"]
[Site "Chess.com"]
[Date "2020.06.23"]
[Round "9"]
[White "ShahMatKanal"]
[Black "doons21"]
[Result "0-1"]
[WhiteElo "2396"]
[BlackElo "2546"]
[TimeControl "180+1"]
[EndTime "11:46:18 PDT"]
[Termination "doons21 won on time"]

1. d4 {[%clk 0:03:00.9]} 1... Nf6 {[%clk 0:02:59.7]} 2. c4 {[%clk 0:02:57.2]}
2... g6 {[%clk 0:02:59.4]} 3. Nc3 {[%clk 0:02:57.1]} 3... Bg7 {[%clk 0:02:59.7]}
4. e4 {[%clk 0:02:57.6]} 4... O-O {[%clk 0:02:59.8]} 5. Be2 {[%clk 0:02:58.1]}
5... d6 {[%clk 0:03:00.4]} 6. Nf3 {[%clk 0:02:58.4]} 6... Qe8 {[%clk 0:03:01]}
7. O-O {[%clk 0:02:20.4]} 7... e5 {[%clk 0:03:00.4]} 8. Re1 {[%clk 0:02:00.1]}
8... c6 {[%clk 0:02:52.9]} 9. d5 {[%clk 0:01:45.8]} 9... c5 {[%clk 0:02:43.2]}
10. Nh4 {[%clk 0:01:32.1]} 10... Qe7 {[%clk 0:02:30.4]} 11. a3 {[%clk
0:01:20.4]} 11... a5 {[%clk 0:02:17.4]} 12. Rb1 {[%clk 0:01:13.3]} 12... Na6
{[%clk 0:02:15.5]} 13. Bg5 {[%clk 0:01:09.5]} 13... h6 {[%clk 0:02:13.8]} 14.
Be3 {[%clk 0:01:09.7]} 14... Ne8 {[%clk 0:01:50.5]} 15. g3 {[%clk 0:01:04.7]}
15... Kh7 {[%clk 0:01:50.6]} 16. Bg4 {[%clk 0:01:00.6]} 16... f5 {[%clk
0:01:49.5]} 17. exf5 {[%clk 0:00:43.8]} 17... gxf5 {[%clk 0:01:50.4]} 18. Bh5
{[%clk 0:00:39.9]} 18... Rf6 {[%clk 0:01:32.8]} 19. f4 {[%clk 0:00:36.3]} 19...
e4 {[%clk 0:01:29.3]} 20. Kh1 {[%clk 0:00:29.1]} 20... Bh8 {[%clk 0:01:29.1]}
21. Rg1 {[%clk 0:00:29]} 21... Ng7 {[%clk 0:01:29]} 22. Be2 {[%clk 0:00:27]}
22... h5 {[%clk 0:01:04]} 23. Bxh5 {[%clk 0:00:24.2]} 23... Rh6 {[%clk
0:01:04.3]} 24. Be2 {[%clk 0:00:15.4]} 24... Bd7 {[%clk 0:01:02.7]} 25. Qe1
{[%clk 0:00:15.4]} 25... Rg8 {[%clk 0:00:59.1]} 26. Qf2 {[%clk 0:00:15.2]} 26...
Ne8 {[%clk 0:00:58.5]} 27. Rg2 {[%clk 0:00:14.1]} 27... Nf6 {[%clk 0:00:58.6]}
28. Rbg1 {[%clk 0:00:13.3]} 28... Ng4 {[%clk 0:00:58.5]} 29. Bxg4 {[%clk
0:00:13.5]} 29... Rxg4 {[%clk 0:00:58]} 30. Nb5 {[%clk 0:00:12.7]} 30... Bxb5
{[%clk 0:00:56.1]} 31. cxb5 {[%clk 0:00:12.5]} 31... Nc7 {[%clk 0:00:57]} 32. a4
{[%clk 0:00:12.7]} 32... Qf7 {[%clk 0:00:54.3]} 33. Qd2 {[%clk 0:00:11.7]} 33...
Nxd5 {[%clk 0:00:48.5]} 34. h3 {[%clk 0:00:10.6]} 34... Rg8 {[%clk 0:00:43.3]}
35. Rd1 {[%clk 0:00:09.6]} 35... Nxe3 {[%clk 0:00:38.1]} 36. Qxe3 {[%clk
0:00:10.5]} 36... b6 {[%clk 0:00:32.1]} 37. Kh2 {[%clk 0:00:09.7]} 37... d5
{[%clk 0:00:32.3]} 38. Qb3 {[%clk 0:00:07.3]} 38... c4 {[%clk 0:00:29.4]} 39.
Qe3 {[%clk 0:00:07.5]} 39... d4 {[%clk 0:00:20.5]} 40. Rxd4 {[%clk 0:00:07.2]}
40... Rxh4 {[%clk 0:00:20.6]} 41. gxh4 {[%clk 0:00:04.3]} 41... Rxg2+ {[%clk
0:00:20.9]} 42. Kxg2 {[%clk 0:00:05.2]} 42... Qg7+ {[%clk 0:00:21.5]} 43. Qg3
{[%clk 0:00:02.1]} 43... Qxg3+ {[%clk 0:00:21.1]} 44. Kxg3 {[%clk 0:00:01.5]}
44... Bxd4 {[%clk 0:00:22]} 0-1

[Event "*** SCC Grand Prix: Titled Tuesday Blitz"]
[Site "Chess.com"]
[Date "2020.06.23"]
[Round "9"]
[White "GadimbayliA"]
[Black "Twitch_ElhamBlitz05"]
[Result "1-0"]
[WhiteElo "2879"]
[BlackElo "2764"]
[TimeControl "180+1"]
[EndTime "11:46:19 PDT"]
[Termination "GadimbayliA won on time"]

1. e4 {[%clk 0:03:00.9]} 1... c6 {[%clk 0:02:57.1]} 2. Nf3 {[%clk 0:02:59.2]}
2... d5 {[%clk 0:02:58]} 3. exd5 {[%clk 0:03:00.1]} 3... cxd5 {[%clk 0:02:58.3]}
4. d4 {[%clk 0:03:01]} 4... Nf6 {[%clk 0:02:58.7]} 5. Ne5 {[%clk 0:02:59.9]}
5... g6 {[%clk 0:02:59.6]} 6. c3 {[%clk 0:02:59.8]} 6... Bg7 {[%clk 0:02:59.3]}
7. Bd3 {[%clk 0:03:00.1]} 7... O-O {[%clk 0:03:00.2]} 8. O-O {[%clk 0:02:59.9]}
8... Nc6 {[%clk 0:03:01.1]} 9. Nxc6 {[%clk 0:03:00.4]} 9... bxc6 {[%clk
0:03:02]} 10. Nd2 {[%clk 0:03:01.2]} 10... Bf5 {[%clk 0:03:01.5]} 11. Bxf5
{[%clk 0:03:00.8]} 11... gxf5 {[%clk 0:03:02.3]} 12. Re1 {[%clk 0:03:01.7]}
12... e6 {[%clk 0:03:02.5]} 13. Nf3 {[%clk 0:03:02]} 13... Ne4 {[%clk
0:03:02.4]} 14. Ne5 {[%clk 0:03:02.2]} 14... Rc8 {[%clk 0:02:56.6]} 15. Re3
{[%clk 0:02:57]} 15... f6 {[%clk 0:02:48.5]} 16. Nd3 {[%clk 0:02:56.8]} 16... e5
{[%clk 0:02:46.7]} 17. Qh5 {[%clk 0:02:55.1]} 17... f4 {[%clk 0:02:34]} 18. Rh3
{[%clk 0:02:49.8]} 18... Ng5 {[%clk 0:02:33.4]} 19. Rh4 {[%clk 0:02:50.2]} 19...
Qe8 {[%clk 0:02:26.1]} 20. dxe5 {[%clk 0:02:50.4]} 20... Qxh5 {[%clk 0:01:38.8]}
21. Rxh5 {[%clk 0:02:51.3]} 21... Ne4 {[%clk 0:01:37.4]} 22. e6 {[%clk
0:02:46.1]} 22... f3 {[%clk 0:01:28.5]} 23. gxf3 {[%clk 0:02:41.9]} 23... Nd6
{[%clk 0:01:28.9]} 24. Bf4 {[%clk 0:02:41.6]} 24... Nc4 {[%clk 0:01:27.7]} 25.
b3 {[%clk 0:02:37.2]} 25... Ne5 {[%clk 0:01:18.4]} 26. Nxe5 {[%clk 0:02:35.2]}
26... fxe5 {[%clk 0:01:19.3]} 27. Bxe5 {[%clk 0:02:36.1]} 27... Bxe5 {[%clk
0:01:16.4]} 28. Rxe5 {[%clk 0:02:37]} 28... Rxf3 {[%clk 0:01:16.5]} 29. c4
{[%clk 0:02:24.1]} 29... dxc4 {[%clk 0:01:09.3]} 30. bxc4 {[%clk 0:02:25]} 30...
Kf8 {[%clk 0:01:07]} 31. Rd1 {[%clk 0:02:21.4]} 31... Rc7 {[%clk 0:00:57.5]} 32.
Rd8+ {[%clk 0:02:03.2]} 32... Ke7 {[%clk 0:00:56.4]} 33. Rh8 {[%clk 0:02:03.8]}
33... Rh3 {[%clk 0:00:56.6]} 34. Rg8 {[%clk 0:01:59.8]} 34... Rh6 {[%clk
0:00:34.4]} 35. Rg7+ {[%clk 0:01:49.7]} 35... Kf6 {[%clk 0:00:33.9]} 36. e7
{[%clk 0:01:44.9]} 36... Rc8 {[%clk 0:00:32.5]} 37. Rgg5 {[%clk 0:01:25.1]}
37... Re8 {[%clk 0:00:31.1]} 38. Rgf5+ {[%clk 0:01:25.4]} 38... Kg7 {[%clk
0:00:30.8]} 39. c5 {[%clk 0:01:26]} 39... Rg6+ {[%clk 0:00:27.2]} 40. Kf1 {[%clk
0:01:25.5]} 40... Rh6 {[%clk 0:00:27.1]} 41. Kg2 {[%clk 0:01:25.9]} 41... Rg6+
{[%clk 0:00:27.1]} 42. Kf3 {[%clk 0:01:26]} 42... Rh6 {[%clk 0:00:27.3]} 43. Kg3
{[%clk 0:01:25.8]} 43... Rg6+ {[%clk 0:00:27.4]} 44. Kf4 {[%clk 0:01:25]} 44...
Rh6 {[%clk 0:00:27.7]} 45. Re3 {[%clk 0:00:43.3]} 45... Rh4+ {[%clk 0:00:10.3]}
46. Kg3 {[%clk 0:00:40.6]} 46... Rh6 {[%clk 0:00:09.4]} 47. h4 {[%clk 0:00:39]}
47... Kg6 {[%clk 0:00:02]} 48. Rf8 {[%clk 0:00:33]} 1-0

[Event "*** SCC Grand Prix: Titled Tuesday Blitz"]
[Site "Chess.com"]
[Date "2020.06.23"]
[Round "9"]
[White "Biranidun"]
[Black "Titus369"]
[Result "1-0"]
[WhiteElo "2732"]
[BlackElo "2558"]
[TimeControl "180+1"]
[EndTime "11:46:20 PDT"]
[Termination "Biranidun won on time"]

1. e4 {[%clk 0:03:00.9]} 1... c5 {[%clk 0:02:56.2]} 2. Nf3 {[%clk 0:03:00.9]}
2... d6 {[%clk 0:02:56.4]} 3. d4 {[%clk 0:03:01.2]} 3... cxd4 {[%clk 0:02:57.3]}
4. Nxd4 {[%clk 0:03:02]} 4... Nf6 {[%clk 0:02:57.8]} 5. Nc3 {[%clk 0:03:01.9]}
5... a6 {[%clk 0:02:55.8]} 6. Be3 {[%clk 0:03:02]} 6... e6 {[%clk 0:02:52.2]} 7.
f3 {[%clk 0:03:01.8]} 7... Nbd7 {[%clk 0:02:52]} 8. g4 {[%clk 0:02:58.2]} 8...
h6 {[%clk 0:02:52.1]} 9. Qd2 {[%clk 0:02:57.3]} 9... b5 {[%clk 0:02:51.7]} 10.
O-O-O {[%clk 0:02:57.5]} 10... b4 {[%clk 0:02:37.8]} 11. Nce2 {[%clk 0:02:55.7]}
11... Qc7 {[%clk 0:02:37.7]} 12. h4 {[%clk 0:02:53.8]} 12... d5 {[%clk
0:02:36.5]} 13. g5 {[%clk 0:02:51.1]} 13... hxg5 {[%clk 0:02:35.3]} 14. exd5
{[%clk 0:02:51.5]} 14... Nxd5 {[%clk 0:02:30.8]} 15. Bxg5 {[%clk 0:02:51.7]}
15... N7b6 {[%clk 0:02:21.2]} 16. Nf4 {[%clk 0:02:49.6]} 16... Bd6 {[%clk
0:01:54.1]} 17. Nxd5 {[%clk 0:02:48.3]} 17... Nxd5 {[%clk 0:01:55]} 18. Bd3
{[%clk 0:02:47.8]} 18... Bb7 {[%clk 0:01:40.6]} 19. Be4 {[%clk 0:02:42.6]} 19...
Rc8 {[%clk 0:01:33.4]} 20. h5 {[%clk 0:02:32.5]} 20... Be5 {[%clk 0:01:16.8]}
21. Kb1 {[%clk 0:02:30.6]} 21... Qb6 {[%clk 0:01:10.4]} 22. Ka1 {[%clk
0:02:17.9]} 22... Qxd4 {[%clk 0:00:59.9]} 23. Qxd4 {[%clk 0:02:17.5]} 23... Bxd4
{[%clk 0:01:00.8]} 24. Rxd4 {[%clk 0:02:18]} 24... f6 {[%clk 0:00:59.5]} 25. Bd2
{[%clk 0:02:10.3]} 25... a5 {[%clk 0:00:58.6]} 26. a3 {[%clk 0:01:55.2]} 26...
bxa3 {[%clk 0:00:55.9]} 27. bxa3 {[%clk 0:01:55.5]} 27... Bc6 {[%clk 0:00:45.6]}
28. Rg1 {[%clk 0:01:17.8]} 28... Ne7 {[%clk 0:00:23.4]} 29. Bxa5 {[%clk
0:01:00]} 29... Rxh5 {[%clk 0:00:17.7]} 30. Bb4 {[%clk 0:00:58.3]} 30... Bxe4
{[%clk 0:00:15.9]} 31. fxe4 {[%clk 0:00:54.1]} 31... Rxc2 {[%clk 0:00:05.4]} 32.
Kb1 {[%clk 0:00:50.9]} 32... Rc7 {[%clk 0:00:02.7]} 33. Rxg7 {[%clk 0:00:49.6]}
33... Rh1+ {[%clk 0:00:02.7]} 34. Kb2 {[%clk 0:00:49.8]} 34... Rh2+ {[%clk
0:00:02.5]} 35. Kb3 {[%clk 0:00:47.3]} 35... Nc6 {[%clk 0:00:02.8]} 36. Rxc7
{[%clk 0:00:38]} 36... Nxd4+ {[%clk 0:00:03.1]} 37. Ka4 {[%clk 0:00:36.9]} 37...
Rc2 {[%clk 0:00:03]} 38. Re7+ {[%clk 0:00:28.9]} 38... Kd8 {[%clk 0:00:02.9]}
39. Rf7 {[%clk 0:00:29.5]} 39... f5 {[%clk 0:00:03.1]} 40. exf5 {[%clk
0:00:29.6]} 40... Nxf5 {[%clk 0:00:02.7]} 41. Kb5 {[%clk 0:00:27.3]} 41... Rc8
{[%clk 0:00:03.1]} 42. Kb6 {[%clk 0:00:23.8]} 42... Rb8+ {[%clk 0:00:02.9]} 43.
Kc6 {[%clk 0:00:23.3]} 43... Rc8+ {[%clk 0:00:03]} 44. Kb7 {[%clk 0:00:23.2]}
44... Rc4 {[%clk 0:00:02.6]} 45. Kb6 {[%clk 0:00:18.3]} 45... Ke8 {[%clk
0:00:02.3]} 46. Rh7 {[%clk 0:00:17.2]} 1-0

[Event "*** SCC Grand Prix: Titled Tuesday Blitz"]
[Site "Chess.com"]
[Date "2020.06.23"]
[Round "9"]
[White "tamarozi99"]
[Black "ALEXJR20"]
[Result "1-0"]
[WhiteElo "2084"]
[BlackElo "2178"]
[TimeControl "180+1"]
[EndTime "11:46:20 PDT"]
[Termination "tamarozi99 won by checkmate"]

1. e4 {[%clk 0:03:00.9]} 1... Nc6 {[%clk 0:02:58.9]} 2. d4 {[%clk 0:02:53.8]}
2... d5 {[%clk 0:02:57.2]} 3. e5 {[%clk 0:02:53.2]} 3... Bf5 {[%clk 0:02:56.8]}
4. Nf3 {[%clk 0:02:52.4]} 4... e6 {[%clk 0:02:56.9]} 5. Bb5 {[%clk 0:02:51.9]}
5... Ne7 {[%clk 0:02:54.8]} 6. c3 {[%clk 0:02:47.5]} 6... a6 {[%clk 0:02:54.9]}
7. Ba4 {[%clk 0:02:47.2]} 7... b5 {[%clk 0:02:55]} 8. Bc2 {[%clk 0:02:45.2]}
8... Qd7 {[%clk 0:02:55]} 9. a4 {[%clk 0:02:39.8]} 9... b4 {[%clk 0:02:50.2]}
10. a5 {[%clk 0:02:39.7]} 10... Rb8 {[%clk 0:02:43.2]} 11. Ba4 {[%clk
0:02:31.2]} 11... h5 {[%clk 0:02:34.5]} 12. h3 {[%clk 0:02:14.6]} 12... Ng6
{[%clk 0:02:31.1]} 13. Nh4 {[%clk 0:02:07.4]} 13... Nge7 {[%clk 0:02:29.5]} 14.
Nd2 {[%clk 0:01:57.8]} 14... g5 {[%clk 0:02:27]} 15. Nxf5 {[%clk 0:01:56]} 15...
Nxf5 {[%clk 0:02:27.9]} 16. Nf3 {[%clk 0:01:54.8]} 16... bxc3 {[%clk 0:02:22.8]}
17. bxc3 {[%clk 0:01:53.1]} 17... Be7 {[%clk 0:02:21.2]} 18. Bxg5 {[%clk
0:01:44.7]} 18... Bxg5 {[%clk 0:02:14.2]} 19. Nxg5 {[%clk 0:01:44.2]} 19... Kf8
{[%clk 0:02:05.8]} 20. Rb1 {[%clk 0:01:35.6]} 20... Rxb1 {[%clk 0:02:00.6]} 21.
Qxb1 {[%clk 0:01:36.5]} 21... Qe7 {[%clk 0:02:00.4]} 22. Ne4 {[%clk 0:01:11.9]}
22... dxe4 {[%clk 0:01:45.6]} 23. Bxc6 {[%clk 0:01:10.8]} 23... e3 {[%clk
0:01:45.2]} 24. Qe4 {[%clk 0:00:44.1]} 24... Qa3 {[%clk 0:01:31.8]} 25. O-O
{[%clk 0:00:19]} 25... Qxc3 {[%clk 0:01:23.8]} 26. fxe3 {[%clk 0:00:18.8]} 26...
Qxe3+ {[%clk 0:01:24.7]} 27. Qxe3 {[%clk 0:00:18.7]} 27... Nxe3 {[%clk
0:01:25.6]} 28. Rb1 {[%clk 0:00:18.5]} 28... Ke7 {[%clk 0:01:18.6]} 29. Rb7
{[%clk 0:00:13.9]} 29... Rg8 {[%clk 0:01:16.8]} 30. Kf2 {[%clk 0:00:11]} 30...
Nxg2 {[%clk 0:01:11.7]} 31. Rxc7+ {[%clk 0:00:10.9]} 31... Kd8 {[%clk
0:01:11.9]} 32. Ra7 {[%clk 0:00:11]} 32... Rg5 {[%clk 0:01:05.8]} 33. Rxa6
{[%clk 0:00:09.9]} 33... Kc7 {[%clk 0:01:05.9]} 34. Bxg2 {[%clk 0:00:09.4]}
34... Rf5+ {[%clk 0:01:06]} 35. Bf3 {[%clk 0:00:09.1]} 35... Rf4 {[%clk
0:01:06.1]} 36. Rb6 {[%clk 0:00:09.1]} 36... Rxd4 {[%clk 0:01:05.8]} 37. Rb1
{[%clk 0:00:08.7]} 37... Rd2+ {[%clk 0:01:04.9]} 38. Ke3 {[%clk 0:00:08.4]}
38... Rh2 {[%clk 0:01:04.6]} 39. Rb7+ {[%clk 0:00:08.3]} 39... Kc8 {[%clk
0:01:03.3]} 40. Rxf7 {[%clk 0:00:08.2]} 40... Rxh3 {[%clk 0:01:03.2]} 41. a6
{[%clk 0:00:08.5]} 41... Rh4 {[%clk 0:00:57.7]} 42. a7 {[%clk 0:00:08.6]} 42...
Ra4 {[%clk 0:00:58.2]} 43. a8=Q+ {[%clk 0:00:08.2]} 43... Rxa8 {[%clk
0:00:58.6]} 44. Bxa8 {[%clk 0:00:08.7]} 44... Kb8 {[%clk 0:00:58.8]} 45. Bh1
{[%clk 0:00:08.1]} 45... h4 {[%clk 0:00:59.7]} 46. Kf4 {[%clk 0:00:08]} 46... h3
{[%clk 0:01:00.6]} 47. Kg3 {[%clk 0:00:08.3]} 47... h2 {[%clk 0:01:01.5]} 48.
Kxh2 {[%clk 0:00:08.7]} 48... Kc8 {[%clk 0:01:01.9]} 49. Kg3 {[%clk 0:00:09.1]}
49... Kd8 {[%clk 0:01:02.8]} 50. Rh7 {[%clk 0:00:09.2]} 50... Ke8 {[%clk
0:01:03.7]} 51. Rb7 {[%clk 0:00:09]} 51... Kd8 {[%clk 0:01:04]} 52. Kf4 {[%clk
0:00:09.4]} 52... Kc8 {[%clk 0:01:04.9]} 53. Kg5 {[%clk 0:00:09.7]} 53... Kd8
{[%clk 0:01:05.8]} 54. Kf6 {[%clk 0:00:10]} 54... Kc8 {[%clk 0:01:06.7]} 55.
Kxe6 {[%clk 0:00:10.3]} 55... Kd8 {[%clk 0:01:07]} 56. Kd6 {[%clk 0:00:07.5]}
56... Kc8 {[%clk 0:01:07.9]} 57. Kc6 {[%clk 0:00:07.2]} 57... Kd8 {[%clk
0:01:08.3]} 58. Rc7 {[%clk 0:00:07.2]} 58... Ke8 {[%clk 0:01:08.3]} 59. Rd7
{[%clk 0:00:07.4]} 59... Kf8 {[%clk 0:01:09.2]} 60. Kd6 {[%clk 0:00:07.2]} 60...
Ke8 {[%clk 0:01:09.2]} 61. Ke6 {[%clk 0:00:07]} 61... Kf8 {[%clk 0:01:09]} 62.
Re7 {[%clk 0:00:07.2]} 62... Kg8 {[%clk 0:01:07.7]} 63. Rf7 {[%clk 0:00:07.3]}
63... Kh8 {[%clk 0:01:05.5]} 64. Kf6 {[%clk 0:00:07.4]} 64... Kg8 {[%clk
0:01:05.2]} 65. e6 {[%clk 0:00:07.6]} 65... Kh8 {[%clk 0:01:04.9]} 66. e7 {[%clk
0:00:07.9]} 66... Kg8 {[%clk 0:01:05.8]} 67. e8=Q# {[%clk 0:00:07.8]} 1-0

[Event "*** SCC Grand Prix: Titled Tuesday Blitz"]
[Site "Chess.com"]
[Date "2020.06.23"]
[Round "9"]
[White "Grandmaster2B"]
[Black "Fortitudine"]
[Result "1-0"]
[WhiteElo "2412"]
[BlackElo "2271"]
[TimeControl "180+1"]
[EndTime "11:46:21 PDT"]
[Termination "Grandmaster2B won on time"]

1. e4 {[%clk 0:03:00.9]} 1... c5 {[%clk 0:02:59.4]} 2. Nf3 {[%clk 0:02:57.6]}
2... d6 {[%clk 0:02:59.2]} 3. d4 {[%clk 0:02:58.2]} 3... cxd4 {[%clk 0:03:00.1]}
4. Nxd4 {[%clk 0:02:58.7]} 4... Nf6 {[%clk 0:03:00.4]} 5. Nc3 {[%clk 0:02:59.1]}
5... Nc6 {[%clk 0:03:00.7]} 6. f3 {[%clk 0:02:58.8]} 6... e5 {[%clk 0:02:59.4]}
7. Nb3 {[%clk 0:02:59.1]} 7... a5 {[%clk 0:02:57]} 8. a4 {[%clk 0:02:55.9]} 8...
Be6 {[%clk 0:02:54.5]} 9. Nd5 {[%clk 0:02:55.9]} 9... Be7 {[%clk 0:02:22.8]} 10.
Be3 {[%clk 0:02:48.5]} 10... Bxd5 {[%clk 0:02:15.3]} 11. exd5 {[%clk 0:02:47.9]}
11... Nb4 {[%clk 0:02:11.3]} 12. Bb5+ {[%clk 0:02:45.9]} 12... Nd7 {[%clk
0:02:10.3]} 13. c3 {[%clk 0:02:42]} 13... Na6 {[%clk 0:02:10.3]} 14. O-O {[%clk
0:02:37.4]} 14... O-O {[%clk 0:02:10]} 15. Nxa5 {[%clk 0:02:25.7]} 15... Qxa5
{[%clk 0:00:49.7]} 16. Bxd7 {[%clk 0:02:25.1]} 16... Nc7 {[%clk 0:00:44.7]} 17.
b4 {[%clk 0:02:21.9]} 17... Qxd5 {[%clk 0:00:42.5]} 18. Bb6 {[%clk 0:02:08.5]}
18... Qxd1 {[%clk 0:00:42.3]} 19. Raxd1 {[%clk 0:02:08.5]} 19... Na6 {[%clk
0:00:26.6]} 20. Rfe1 {[%clk 0:02:00.5]} 20... Nb8 {[%clk 0:00:23.6]} 21. Bf5
{[%clk 0:01:55.2]} 21... Rxa4 {[%clk 0:00:18.7]} 22. Bc7 {[%clk 0:01:48.7]}
22... Ra3 {[%clk 0:00:17.9]} 23. Bxd6 {[%clk 0:01:43.8]} 23... Bxd6 {[%clk
0:00:18.1]} 24. Rxd6 {[%clk 0:01:44.3]} 24... Rxc3 {[%clk 0:00:17.7]} 25. Rxe5
{[%clk 0:01:45]} 25... Nc6 {[%clk 0:00:17.4]} 26. Rb5 {[%clk 0:01:39.8]} 26...
Rc4 {[%clk 0:00:17.2]} 27. Rxb7 {[%clk 0:01:24.5]} 27... Nxb4 {[%clk 0:00:17.2]}
28. Rdd7 {[%clk 0:01:13.3]} 28... Nc6 {[%clk 0:00:08.5]} 29. Rbc7 {[%clk
0:01:01.5]} 29... Ne5 {[%clk 0:00:07.1]} 30. Rxc4 {[%clk 0:00:24.8]} 30... Nxc4
{[%clk 0:00:08]} 31. f4 {[%clk 0:00:23.6]} 31... Nb6 {[%clk 0:00:03.3]} 32. Rb7
{[%clk 0:00:23.2]} 32... Nd5 {[%clk 0:00:03.6]} 33. g3 {[%clk 0:00:23.8]} 33...
Nf6 {[%clk 0:00:02.7]} 34. Bd3 {[%clk 0:00:23.7]} 34... g6 {[%clk 0:00:03.1]}
35. Bc4 {[%clk 0:00:23.9]} 35... h5 {[%clk 0:00:03.1]} 36. h3 {[%clk 0:00:24.2]}
36... Kg7 {[%clk 0:00:03.5]} 37. Kg2 {[%clk 0:00:24.8]} 37... Nh7 {[%clk
0:00:01.7]} 38. g4 {[%clk 0:00:24.7]} 38... hxg4 {[%clk 0:00:02.1]} 39. hxg4
{[%clk 0:00:25.6]} 39... Nf6 {[%clk 0:00:02.7]} 40. Kf3 {[%clk 0:00:25.4]} 40...
g5 {[%clk 0:00:02.5]} 41. fxg5 {[%clk 0:00:25.1]} 41... Nh7 {[%clk 0:00:03.2]}
42. Kf4 {[%clk 0:00:24.7]} 42... Kg6 {[%clk 0:00:03.7]} 43. Bd3+ {[%clk
0:00:24.7]} 43... Kg7 {[%clk 0:00:04.1]} 44. Bf5 {[%clk 0:00:20.5]} 44... Ra8
{[%clk 0:00:02.5]} 45. g6 {[%clk 0:00:17.9]} 1-0